fUST/lending_fUST_20240621
["ID","MTS","AMOUNT","RATE_DAILY","PERIOD"]
[329995128,1718907045552,-500.0,0.00054967,120]
[329995129,1718907045562,-613.95199587,0.00054967,120]
[329995130,1718907045572,-643.190536,0.00054967,120]
[329995131,1718907045590,-416.85953572,0.00054967,4]
[329995132,1718907045600,-219.99927777,0.00054967,4]
[329995133,1718907045609,-500.0,0.00054999,120]
[329995134,1718907045620,-1000.0,0.00055,55]
[329995135,1718907045630,-1000.0,0.00055,120]
[329995136,1718907045640,-541.66,0.00055066,120]
[329995137,1718907045652,-2928.67,0.00055066,120]
[329995138,1718907045662,-500.0,0.00055067,120]
[329995139,1718907045671,-500.0,0.00055067,120]
[329995140,1718907045681,-507.16042469,0.00055067,120]
[329995141,1718907045690,-500.0,0.00055067,120]
[329995142,1718907045700,-500.0,0.00055067,120]
[329995143,1718907045710,-500.0,0.00055067,120]
[329995144,1718907045719,-541.66,0.00055067,120]
[329995145,1718907045728,-541.66,0.00055067,120]
[329995146,1718907045738,-541.66,0.00055067,120]
[329995147,1718907045748,-2928.67,0.00055067,120]
[329995148,1718907045759,-2928.67,0.00055067,120]
[329995149,1718907045768,-2928.67,0.00055067,120]
[329995150,1718907045779,-2928.67,0.00055067,120]
[329995151,1718907045789,-2928.67,0.00055067,120]
[329995152,1718907045798,-577.75967056,0.00055067,4]
[329995153,1718907045807,-506.95191308,0.00055068,120]
[329995154,1718907045816,-971.09,0.00055068,120]
[329995155,1718907045826,-500.0,0.00055068,120]
[329995156,1718907045835,-500.0,0.00055068,120]
[329995157,1718907045844,-500.0,0.00055068,120]
[329995158,1718907045854,-500.0,0.00055068,120]
[329995159,1718907045864,-500.0,0.00055068,120]
[329995160,1718907045874,-500.0,0.00055068,120]
[329995161,1718907045883,-507.35335198,0.00055068,120]
[329995162,1718907045892,-500.0,0.00055068,7]
[329995163,1718907045906,-500.0,0.00055068,7]
[329995164,1718907045917,-501.23,0.00055068,120]
[329995165,1718907045926,-521.52226447,0.00055068,120]
[329995166,1718907045935,-500.0,0.00055068,120]
[329995167,1718907045945,-500.0,0.00055068,120]
[329995168,1718907045955,-500.0,0.00055068,120]
[329995169,1718907045965,-500.0,0.00055068,120]
[329995170,1718907045975,-265.14712728,0.00055068,120]
[329995171,1718907045984,-511.79895086,0.00055068,120]
[329995172,1718907045996,-500.0,0.00055068,120]
[329995173,1718907046007,-500.0,0.00055068,120]
[329995174,1718907046016,-500.0,0.00055068,120]
[329995175,1718907046026,-500.0,0.00055068,120]
[329995176,1718907046035,-500.0,0.00055068,120]
[329995177,1718907046045,-500.0,0.00055068,120]
[329995178,1718907046055,-500.0,0.00055068,120]
[329995179,1718907046064,-150.36962459,0.00055068,120]
[329995180,1718907046073,-500.0,0.00055068,120]
[329995181,1718907046084,-500.0,0.00055068,120]
[329995182,1718907046093,-500.0,0.00055068,120]
[329995183,1718907046103,-220.77814418,0.00055068,120]
[329995184,1718907046112,-500.0,0.00055068,120]
[329995185,1718907046123,-500.0,0.00055068,120]
[329995186,1718907046135,-500.0,0.00055068,120]
[329995187,1718907046145,-506.68915854,0.00055068,120]
[329995188,1718907046156,-500.0,0.00055068,120]
[329995189,1718907046165,-178.31420421,0.00055068,120]
[329995190,1718907046174,-509.24160907,0.00055068,120]
[329995191,1718907046183,-500.0,0.00055068,120]
[329995192,1718907046194,-500.0,0.00055068,120]
[329995193,1718907046203,-510.2434495,0.00055068,120]
[329995194,1718907046213,-518.51468292,0.00055068,120]
[329995195,1718907046222,-252.91423135,0.00055068,120]
[329995196,1718907046232,-508.19156623,0.00055068,120]
[329995197,1718907046242,-500.0,0.00055068,120]
[329995198,1718907046254,-250.0,0.00055068,120]
[329995199,1718907046264,-500.0,0.00055068,120]
[329995200,1718907046273,-500.0,0.00055068,120]
[329995201,1718907046283,-500.0,0.00055068,120]
[329995202,1718907046293,-566.44088067,0.00055068,120]
[329995203,1718907046303,-500.0,0.00055068,120]
[329995204,1718907046312,-500.0,0.00055068,120]
[329995205,1718907046321,-500.0,0.00055068,120]
[329995207,1718907046331,-500.0,0.00055068,120]
[329995208,1718907046341,-507.91711026,0.00055068,120]
[329995209,1718907046350,-516.34034213,0.00055068,120]
[329995210,1718907046360,-542.24654691,0.00055068,120]
[329995211,1718907046369,-500.0,0.00055068,120]
[329995212,1718907046380,-500.0,0.00055068,120]
[329995213,1718907046390,-330.27830913,0.00055068,120]
[329995214,1718907046399,-500.0,0.00055068,120]
[329995215,1718907046412,-500.0,0.00055068,120]
[329995216,1718907046422,-500.0,0.00055068,120]
[329995217,1718907046431,-500.0,0.00055068,120]
[329995218,1718907046440,-503.76132719,0.00055068,120]
[329995219,1718907046449,-500.0,0.00055068,2]
[329995220,1718907046459,-500.0,0.00055068,120]
[329995221,1718907046468,-500.0,0.00055068,120]
[329995222,1718907046478,-500.0,0.00055068,120]
[329995223,1718907046487,-500.0,0.00055068,120]
[329995224,1718907046496,-826.52,0.00055068,120]
[329995225,1718907046506,-500.0,0.00055068,120]
[329995226,1718907046515,-500.0,0.00055068,120]
[329995227,1718907046524,-500.0,0.00055068,120]
[329995228,1718907046534,-500.0,0.00055068,120]
[329995229,1718907046543,-575.28698375,0.00055068,120]
[329995230,1718907046552,-500.0,0.00055068,120]
[329995231,1718907046562,-500.0,0.00055068,120]
[329995232,1718907046571,-500.0,0.00055068,120]
[329995233,1718907046581,-500.0,0.00055068,120]
[329995234,1718907046590,-500.0,0.00055068,120]
[329995235,1718907046600,-500.0,0.00055068,120]
[329995236,1718907046610,-538.86,0.00055068,120]
[329995237,1718907046619,-500.0,0.00055068,120]
[329995238,1718907046628,-500.0,0.00055068,120]
[329995239,1718907046637,-500.0,0.00055068,120]
[329995240,1718907046647,-583.41322618,0.00055068,120]
[329995241,1718907046659,-511.4968587,0.00055068,120]
[329995243,1718907046668,-500.0,0.00055068,120]
[329995245,1718907046677,-500.0,0.00055068,120]
[329995247,1718907046686,-500.0,0.00055068,120]
[329995248,1718907046695,-500.0,0.00055068,120]
[329995250,1718907046704,-500.0,0.00055068,120]
[329995252,1718907046714,-1000.0,0.00055068,120]
[329995254,1718907046723,-500.0,0.00055068,120]
[329995255,1718907046732,-500.0,0.00055068,120]
[329995256,1718907046741,-500.0,0.00055068,120]
[329995257,1718907046751,-305.36070266,0.00055068,120]
[329995258,1718907046760,-500.0,0.00055068,120]
[329995259,1718907046834,-500.0,0.00055068,30]
[329995260,1718907046845,-613.70071489,0.00055068,120]
[329995261,1718907046854,-500.0,0.00055068,120]
[329995262,1718907046863,-500.0,0.00055068,120]
[329995263,1718907046873,-500.0,0.00055068,120]
[329995264,1718907046882,-500.0,0.00055068,120]
[329995265,1718907046891,-900.05537152,0.00055068,120]
[329995266,1718907046903,-500.0,0.00055068,120]
[329995267,1718907046915,-500.0,0.00055068,120]
[329995268,1718907046924,-500.0,0.00055068,120]
[329995269,1718907046933,-500.0,0.00055068,120]
[329995270,1718907046942,-2062.89,0.00055068,120]
[329995271,1718907046953,-508.5,0.00055068,120]
[329995272,1718907046963,-500.0,0.00055068,120]
[329995273,1718907046971,-531.11809611,0.00055068,120]
[329995274,1718907046983,-500.0,0.00055068,120]
[329995275,1718907046994,-750.16,0.00055068,120]
[329995276,1718907047003,-500.0,0.00055068,120]
[329995277,1718907047012,-500.0,0.00055068,120]
[329995278,1718907047022,-200.0,0.00055068,7]
[329995279,1718907047031,-500.0,0.00055068,120]
[329995280,1718907047040,-500.0,0.00055068,120]
[329995281,1718907047049,-500.0,0.00055068,120]
[329995282,1718907047059,-500.0,0.00055068,120]
[329995283,1718907047068,-506.39539619,0.00055068,120]
[329995284,1718907047077,-500.0,0.00055068,120]
[329995285,1718907047087,-500.0,0.00055068,120]
[329995286,1718907047096,-500.0,0.00055068,120]
[329995287,1718907047106,-500.0,0.00055068,120]
[329995288,1718907047116,-500.0,0.00055068,120]
[329995289,1718907047126,-500.0,0.00055068,120]
[329995290,1718907047135,-500.0,0.00055068,120]
[329995291,1718907047145,-500.0,0.00055068,120]
[329995292,1718907047156,-500.0,0.00055068,120]
[329995293,1718907047166,-500.0,0.00055068,120]
[329995294,1718907047175,-500.0,0.00055068,2]
[329995295,1718907047184,-500.0,0.00055068,120]
[329995296,1718907047193,-500.0,0.00055068,20]
[329995297,1718907047203,-500.0,0.00055068,120]
[329995298,1718907047212,-500.0,0.00055068,120]
[329995299,1718907047222,-500.0,0.00055068,120]
[329995300,1718907047231,-613.4933,0.00055068,120]
[329995301,1718907047241,-500.0,0.00055068,120]
[329995302,1718907047250,-500.0,0.00055068,120]
[329995303,1718907047260,-500.0,0.00055068,120]
[329995304,1718907047270,-500.0,0.00055068,120]
[329995305,1718907047279,-500.0,0.00055068,120]
[329995306,1718907047289,-500.0,0.00055068,120]
[329995307,1718907047299,-609.77,0.00055068,2]
[329995308,1718907047308,-500.0,0.00055068,120]
[329995309,1718907047317,-500.0,0.00055068,120]
[329995310,1718907047327,-500.0,0.00055068,120]
[329995311,1718907047337,-506.38170765,0.00055068,120]
[329995312,1718907047347,-500.0,0.00055068,120]
[329995313,1718907047356,-523.93628753,0.00055068,120]
[329995314,1718907047367,-500.0,0.00055068,120]
[329995315,1718907047377,-500.0,0.00055068,120]
[329995316,1718907047386,-500.0,0.00055068,120]
[329995317,1718907047399,-500.0,0.00055068,120]
[329995318,1718907047416,-500.0,0.00055068,120]
[329995319,1718907047425,-500.0,0.00055068,120]
[329995320,1718907047434,-500.0,0.00055068,120]
[329995321,1718907047448,-317.78145695,0.00055068,120]
[329995322,1718907047458,-503.76619801,0.00055068,120]
[329995323,1718907047467,-500.0,0.00055068,120]
[329995324,1718907047477,-500.0,0.00055068,120]
[329995325,1718907047487,-500.0,0.00055068,120]
[329995326,1718907047496,-500.0,0.00055068,120]
[329995327,1718907047506,-500.0,0.00055068,120]
[329995328,1718907047516,-505.82,0.00055068,120]
[329995329,1718907047525,-500.0,0.00055068,120]
[329995330,1718907047535,-500.0,0.00055068,120]
[329995331,1718907047544,-500.0,0.00055068,120]
[329995332,1718907047554,-500.0,0.00055068,120]
[329995333,1718907047563,-500.0,0.00055068,120]
[329995334,1718907047573,-500.0,0.00055068,120]
[329995335,1718907047583,-1691.82,0.00055068,120]
[329995336,1718907047592,-500.0,0.00055068,2]
[329995337,1718907047601,-500.0,0.00055068,120]
[329995338,1718907047611,-346.41004582,0.00055068,120]
[329995339,1718907047620,-500.0,0.00055068,120]
[329995340,1718907047630,-3101.9,0.00055068,60]
[329995341,1718907047640,-500.0,0.00055068,120]
[329995342,1718907047649,-516.92,0.00055068,120]
[329995343,1718907047662,-500.0,0.00055068,120]
[329995344,1718907047672,-500.0,0.00055068,120]
[329995345,1718907047682,-268.66406062,0.00055068,120]
[329995346,1718907047691,-500.0,0.00055068,120]
[329995347,1718907047701,-500.0,0.00055068,120]
[329995348,1718907047711,-500.0,0.00055068,120]
[329995349,1718907047721,-241.21671915,0.00055068,120]
[329995350,1718907047731,-2662.65,0.00055068,120]
[329995351,1718907047741,-500.0,0.00055068,120]
[329995352,1718907047751,-500.0,0.00055068,120]
[329995353,1718907047761,-590.66657612,0.00055068,120]
[329995354,1718907047771,-524.76,0.00055068,120]
[329995355,1718907047781,-500.0,0.00055068,120]
[329995356,1718907047791,-500.0,0.00055068,2]
[329995357,1718907047801,-500.0,0.00055068,120]
[329995358,1718907047811,-500.0,0.00055068,120]
[329995359,1718907047821,-367.01276634,0.00055068,120]
[329995360,1718907047831,-500.0,0.00055068,120]
[329995361,1718907047841,-500.0,0.00055068,120]
[329995362,1718907047851,-643.84,0.00055068,120]
[329995363,1718907047860,-500.0,0.00055068,120]
[329995364,1718907047870,-500.0,0.00055068,120]
[329995365,1718907047880,-500.0,0.00055068,120]
[329995366,1718907047889,-506.69556661,0.00055068,120]
[329995367,1718907047899,-500.0,0.00055068,120]
[329995368,1718907047910,-500.0,0.00055068,120]
[329995369,1718907047923,-2559.98,0.00055068,120]
[329995370,1718907047933,-500.0,0.00055068,120]
[329995371,1718907047943,-500.0,0.00055068,120]
[329995372,1718907047954,-500.0,0.00055068,120]
[329995373,1718907047964,-161.416194,0.00055068,120]
[329995374,1718907048035,-500.0,0.00055068,120]
[329995375,1718907048044,-500.0,0.00055068,120]
[329995376,1718907048054,-383.27595,0.00055068,120]
[329995377,1718907048063,-500.0,0.00055068,120]
[329995378,1718907048073,-383.27595,0.00055068,120]
[329995379,1718907048082,-500.0,0.00055068,120]
[329995380,1718907048091,-826.16,0.00055068,120]
[329995381,1718907048100,-5871.63,0.00055068,120]
[329995382,1718907048109,-500.0,0.00055068,120]
[329995383,1718907048119,-6888.11,0.00055068,120]
[329995384,1718907048128,-4114.48,0.00055068,120]
[329995385,1718907048137,-151.0,0.00055068,120]
[329995386,1718907048146,-202.4050289,0.00055068,120]
[329995387,1718907048157,-500.0,0.00055068,120]
[329995388,1718907048167,-500.0,0.00055068,120]
[329995389,1718907048177,-1585.31,0.00055068,120]
[329995390,1718907048186,-500.0,0.00055068,120]
[329995391,1718907048196,-500.0,0.00055068,120]
[329995392,1718907048205,-500.0,0.00055068,120]
[329995393,1718907048214,-859.949787,0.00055068,120]
[329995394,1718907048223,-506.87584963,0.00055068,120]
[329995395,1718907048233,-213.62269834,0.00055068,20]
[329995396,1718907048243,-859.949787,0.00055068,120]
[329995397,1718907048252,-500.0,0.00055068,120]
[329995398,1718907048262,-500.0,0.00055068,120]
[329995399,1718907048271,-500.0,0.00055068,120]
[329995400,1718907048281,-503.34665111,0.00055068,120]
[329995401,1718907048290,-500.0,0.00055068,120]
[329995402,1718907048300,-500.0,0.00055068,120]
[329995403,1718907048310,-584.47548196,0.00055068,120]
[329995404,1718907048320,-1000.0,0.00055068,120]
[329995405,1718907048329,-500.0,0.00055068,120]
[329995406,1718907048339,-500.0,0.00055068,120]
[329995407,1718907048348,-501.15692702,0.00055068,120]
[329995408,1718907048360,-500.0,0.00055068,120]
[329995409,1718907048370,-500.0,0.00055068,120]
[329995410,1718907048379,-500.0,0.00055068,120]
[329995411,1718907048389,-3012.37,0.00055068,120]
[329995412,1718907048398,-151.0,0.00055068,120]
[329995413,1718907048411,-500.0,0.00055068,120]
[329995414,1718907048420,-500.0,0.00055068,120]
[329995415,1718907048429,-500.0,0.00055068,120]
[329995416,1718907048439,-500.0,0.00055068,120]
[329995417,1718907048449,-500.0,0.00055068,120]
[329995418,1718907048459,-500.0,0.00055068,120]
[329995419,1718907048468,-500.0,0.00055068,120]
[329995420,1718907048478,-500.0,0.00055068,120]
[329995421,1718907048488,-1268.23,0.00055068,120]
[329995422,1718907048498,-500.0,0.00055068,120]
[329995423,1718907048508,-151.0,0.00055068,120]
[329995424,1718907048517,-20572.35,0.00055068,120]
[329995425,1718907048527,-500.0,0.00055068,120]
[329995426,1718907048537,-502.4238475,0.00055068,120]
[329995427,1718907048546,-500.0,0.00055068,120]
[329995428,1718907048556,-500.0,0.00055068,120]
[329995429,1718907048565,-500.0,0.00055068,120]
[329995430,1718907048575,-500.0,0.00055068,120]
[329995431,1718907048584,-500.0,0.00055068,120]
[329995432,1718907048594,-500.0,0.00055068,120]
[329995433,1718907048604,-500.0,0.00055068,120]
[329995434,1718907048613,-500.0,0.00055068,120]
[329995435,1718907048623,-500.0,0.00055068,120]
[329995436,1718907048632,-500.0,0.00055068,120]
[329995437,1718907048641,-500.0,0.00055068,120]
[329995438,1718907048650,-1774.47,0.00055068,21]
[329995439,1718907048662,-500.0,0.00055068,120]
[329995440,1718907048672,-500.0,0.00055068,60]
[329995441,1718907048681,-532.52047771,0.00055068,120]
[329995442,1718907048690,-500.0,0.00055068,120]
[329995443,1718907048699,-500.0,0.00055068,120]
[329995444,1718907048709,-500.0,0.00055068,120]
[329995445,1718907048718,-326.894195,0.00055068,120]
[329995446,1718907048728,-399.49946303,0.00055068,120]
[329995447,1718907048738,-151.0,0.00055068,120]
[329995448,1718907048747,-326.894195,0.00055068,120]
[329995449,1718907048757,-3331.04,0.00055068,120]
[329995450,1718907048766,-151.0,0.00055068,120]
[329995451,1718907048775,-151.0,0.00055068,120]
[329995452,1718907048787,-500.0,0.00055068,120]
[329995453,1718907048797,-500.0,0.00055068,120]
[329995454,1718907048806,-500.0,0.00055068,120]
[329995455,1718907048815,-500.0,0.00055068,120]
[329995456,1718907048825,-503.51552768,0.00055068,120]
[329995457,1718907048834,-546.04903319,0.00055068,120]
[329995458,1718907048844,-3317.56,0.00055068,120]
[329995459,1718907048854,-500.0,0.00055068,120]
[329995460,1718907048864,-1980.1,0.00055068,120]
[329995461,1718907048875,-500.0,0.00055068,120]
[329995462,1718907048884,-151.0,0.00055068,120]
[329995463,1718907048893,-500.0,0.00055068,120]
[329995464,1718907048905,-500.0,0.00055068,120]
[329995465,1718907048916,-500.0,0.00055068,120]
[329995466,1718907048925,-285.84551643,0.00055068,120]
[329995467,1718907048934,-151.0,0.00055068,120]
[329995468,1718907048943,-782.961,0.00055068,120]
[329995469,1718907048954,-500.0,0.00055068,120]
[329995470,1718907048963,-823.45,0.00055068,120]
[329995471,1718907048972,-500.0,0.00055068,120]
[329995472,1718907048983,-500.0,0.00055068,120]
[329995473,1718907048995,-782.961,0.00055068,120]
[329995474,1718907049005,-447.41067231,0.00055068,120]
[329995475,1718907049014,-2671.66,0.00055068,120]
[329995476,1718907049023,-500.0,0.00055068,120]
[329995477,1718907049033,-500.0,0.00055068,120]
[329995478,1718907049042,-500.0,0.00055068,120]
[329995479,1718907049110,-151.0,0.00055068,120]
[329995480,1718907049120,-500.0,0.00055068,120]
[329995481,1718907049130,-500.0,0.00055068,120]
[329995482,1718907049140,-500.0,0.00055068,120]
[329995483,1718907049149,-500.0,0.00055068,120]
[329995484,1718907049160,-500.0,0.00055068,120]
[329995485,1718907049170,-500.0,0.00055068,120]
[329995486,1718907049179,-500.0,0.00055068,120]
[329995487,1718907049188,-500.0,0.00055068,120]
[329995488,1718907049198,-506.82043498,0.00055068,120]
[329995489,1718907049207,-561.51,0.00055068,120]
[329995490,1718907049216,-500.0,0.00055068,120]
[329995491,1718907049226,-500.0,0.00055068,120]
[329995492,1718907049235,-500.0,0.00055068,120]
[329995493,1718907049245,-500.0,0.00055068,120]
[329995494,1718907049254,-500.0,0.00055068,120]
[329995495,1718907049263,-1624.59,0.00055068,120]
[329995496,1718907049273,-631.95,0.00055068,120]
[329995497,1718907049282,-500.0,0.00055068,120]
[329995498,1718907049292,-500.0,0.00055068,90]
[329995499,1718907049301,-500.0,0.00055068,120]
[329995500,1718907049310,-500.0,0.00055068,120]
[329995501,1718907049320,-500.0,0.00055068,120]
[329995502,1718907049330,-551.47,0.00055068,120]
[329995503,1718907049339,-500.0,0.00055068,120]
[329995504,1718907049348,-451.7598062,0.00055068,120]
[329995505,1718907049358,-2908.95,0.00055068,120]
[329995506,1718907049368,-1350.09,0.00055068,120]
[329995507,1718907049377,-500.0,0.00055068,120]
[329995508,1718907049387,-500.0,0.00055068,120]
[329995509,1718907049396,-501.55451825,0.00055068,120]
[329995510,1718907049407,-500.0,0.00055068,120]
[329995511,1718907049417,-500.0,0.00055068,120]
[329995512,1718907049427,-500.0,0.00055068,120]
[329995513,1718907049436,-500.0,0.00055068,120]
[329995514,1718907049445,-500.0,0.00055068,120]
[329995515,1718907049455,-500.0,0.00055068,120]
[329995516,1718907049464,-500.0,0.00055068,120]
[329995517,1718907049474,-500.0,0.00055068,7]
[329995518,1718907049483,-3598.74971058,0.00055073,120]
[329995519,1718907049492,-150.5,0.00055074,62]
[329995520,1718907049501,-150.5,0.00055074,62]
[329995521,1718907049511,-150.5,0.00055074,62]
[329995522,1718907049520,-150.5,0.00055084,62]
[329995523,1718907049529,-150.5,0.00055084,62]
[329995524,1718907049538,-150.5,0.00055084,62]
[329995525,1718907049548,-270.02,0.00055094,62]
[329995526,1718907049557,-232.94,0.00055094,62]
[329995527,1718907049567,-150.5,0.00055094,62]
[329995528,1718907049576,-150.5,0.00055094,62]
[329995529,1718907049586,-150.5,0.00055094,62]
[329995530,1718907049595,-156.09516611,0.00055165,4]
[329995531,1718907049604,-152.12889222,0.0005519,120]
[329995532,1718907049614,-152.62,0.00055242,120]
[329995533,1718907049623,-155.64,0.00055242,120]
[329995534,1718907049632,-171.26,0.00055242,120]
[329995535,1718907049641,-541.66,0.00055283,120]
[329995536,1718907049651,-782.961,0.00055289,120]
[329995537,1718907049661,-782.961,0.00055289,120]
[329995538,1718907049670,-151.0,0.00055289,120]
[329995539,1718907049679,-2928.67,0.00055289,120]
[329995540,1718907049689,-2928.67,0.00055289,120]
[329995541,1718907049698,-2928.67,0.00055289,120]
[329995542,1718907049707,-139999.0,0.0005529,120]
[329995543,1718907049717,-151.0,0.0005529,120]
[329995544,1718907049726,-153.021532,0.0005529,120]
[329995545,1718907049736,-153.021532,0.0005529,120]
[329995546,1718907049745,-151.0,0.0005529,120]
[329995547,1718907049755,-151.0,0.0005529,120]
[329995548,1718907049765,-151.0,0.0005529,120]
[329995549,1718907049775,-223.702527,0.0005529,120]
[329995550,1718907049785,-383.27595,0.0005529,120]
[329995551,1718907049794,-383.27595,0.0005529,120]
[329995552,1718907049804,-228585.61192704,0.0005529,120]
[329995553,1718907049814,-151.0,0.0005529,120]
[329995554,1718907049823,-859.949787,0.0005529,120]
[329995555,1718907049833,-859.949787,0.0005529,120]
[329995556,1718907049842,-151.0,0.0005529,120]
[329995557,1718907049852,-151.0,0.0005529,120]
[329995558,1718907049862,-151.0,0.0005529,120]
[329995559,1718907049871,-326.894195,0.0005529,120]
[329995560,1718907049880,-326.894195,0.0005529,120]
[329995561,1718907049890,-151.0,0.0005529,120]
[329995562,1718907049899,-326.894195,0.0005529,120]
[329995563,1718907049911,-151.0,0.0005529,120]
[329995564,1718907049924,-326.894195,0.0005529,120]
[329995565,1718907049933,-151.0,0.0005529,120]
[329995566,1718907049942,-151.0,0.0005529,120]
[329995567,1718907049952,-151.0,0.0005529,120]
[329995568,1718907049962,-151.0,0.0005529,120]
[329995569,1718907049971,-151.0,0.0005529,120]
[329995570,1718907049980,-151.0,0.0005529,120]
[329995571,1718907049990,-151.0,0.0005529,120]
[329995572,1718907050001,-151.0,0.0005529,120]
[329995573,1718907050010,-782.961,0.0005529,120]
[329995574,1718907050019,-782.961,0.0005529,120]
[329995575,1718907050028,-782.961,0.0005529,120]
[329995576,1718907050093,-782.961,0.0005529,120]
[329995577,1718907050103,-151.0,0.0005529,120]
[329995578,1718907050112,-151.0,0.0005529,120]
[329995579,1718907050121,-252.0,0.000553,34]
[329995580,1718907050130,-160.0,0.000553,51]
[329995581,1718907050139,-2928.67,0.0005534,120]
[329995582,1718907050148,-500.0,0.00055341,120]
[329995583,1718907050158,-500.0,0.00055341,120]
[329995584,1718907050168,-500.0,0.00055341,120]
[329995585,1718907050177,-500.0,0.00055341,120]
[329995586,1718907050187,-541.66,0.00055341,120]
[329995587,1718907050196,-541.66,0.00055341,120]
[329995588,1718907050205,-541.66,0.00055341,120]
[329995589,1718907050216,-541.66,0.00055341,120]
[329995590,1718907050226,-2928.67,0.00055341,120]
[329995591,1718907050236,-2928.67,0.00055341,120]
[329995592,1718907050245,-2928.67,0.00055341,120]
[329995593,1718907050256,-2928.67,0.00055341,120]
[329995594,1718907050265,-2928.89345792,0.00055341,120]
[329995595,1718907050276,-971.09,0.00055342,120]
[329995596,1718907050285,-526.29441157,0.00055342,120]
[329995597,1718907050294,-500.0,0.00055342,120]
[329995598,1718907050304,-513.00246972,0.00055342,120]
[329995599,1718907050313,-513.93039047,0.00055342,120]
[329995600,1718907050322,-500.0,0.00055342,120]
[329995601,1718907050331,-500.0,0.00055342,7]
[329995602,1718907050341,-501.23,0.00055342,120]
[329995603,1718907050351,-500.0,0.00055342,120]
[329995604,1718907050360,-500.0,0.00055342,120]
[329995605,1718907050370,-500.0,0.00055342,120]
[329995606,1718907050379,-500.0,0.00055342,120]
[329995607,1718907050389,-500.0,0.00055342,120]
[329995608,1718907050399,-516.85677151,0.00055342,120]
[329995609,1718907050411,-308.50168683,0.00055342,120]
[329995610,1718907050421,-500.0,0.00055342,120]
[329995611,1718907050433,-500.0,0.00055342,120]
[329995612,1718907050442,-308.96339902,0.00055342,120]
[329995613,1718907050452,-500.0,0.00055342,120]
[329995614,1718907050461,-500.0,0.00055342,120]
[329995615,1718907050471,-513.31905658,0.00055342,120]
[329995616,1718907050479,-500.0,0.00055342,120]
[329995617,1718907050488,-520.75899846,0.00055342,120]
[329995618,1718907050498,-509.48067366,0.00055342,120]
[329995619,1718907050507,-500.0,0.00055342,120]
[329995620,1718907050517,-500.0,0.00055342,120]
[329995621,1718907050526,-250.0,0.00055342,120]
[329995622,1718907050548,-500.0,0.00055342,120]
[329995623,1718907050565,-500.0,0.00055342,120]
[329995624,1718907050585,-151.0,0.00055342,120]
[329995625,1718907050605,-500.0,0.00055342,120]
[329995626,1718907050625,-509.75399208,0.00055342,120]
[329995627,1718907050642,-500.0,0.00055342,120]
[329995628,1718907050664,-517.80974259,0.00055342,120]
[329995629,1718907050678,-500.0,0.00055342,120]
[329995630,1718907050695,-500.0,0.00055342,120]
[329995631,1718907050715,-500.0,0.00055342,120]
[329995632,1718907050733,-500.0,0.00055342,120]
[329995633,1718907050746,-500.63189249,0.00055342,120]
[329995634,1718907050766,-500.0,0.00055342,120]